[Event "Faroes Open 2018"]
[Site "Sandavagur"]
[Date "2018.07.07"]
[Round "1"]
[White "Vavulin, Maksim"]
[Black "Hruby, Milan"]
[Result "1-0"]
[ECO "C77"]
[WhiteElo "2552"]
[BlackElo "2031"]
[Annotator "ChessBase"]
[PlyCount "61"]
[EventDate "2018.07.07"]
[EventType "swiss"]
[EventCountry "FAI"]
[SourceTitle "playchess.com"]
[Source "ChessBase"]
[SourceQuality "1"]
[TimeControl "40/5400+30:900+30"]

1. e4 {[%emt 0:00:00]} e5 {[%emt 0:00:00]} 2. Nf3 {[%emt 0:00:00]} Nc6 {[%emt 0:00:00]} 3. Bb5 {[%emt 0:00:00]} a6 {[%emt 0:00:00]} 4. Ba4 {[%emt 0:00:00]} Nf6 {[%emt 0:00:00]} 5. d3 {[%emt 0:00:19]} d6 {[%emt 0:00:27]} 6. c3 {[%emt 0:00:11]} g6 {[%emt 0:00:35]} 7. O-O {[%emt 0:00:23]} Bg7 {[%emt 0:00:07]} 8. Nbd2 {[%emt 0:01:46]} O-O {[%emt 0:01:33]} 9. Re1 {[%emt 0:02:51]} b5 {[%emt 0:01:33]} 10. Bc2 {[%emt 0:00:39]} d5 {[%emt 0:01:17]} 11. h3 {[%emt 0:03:42]} dxe4 {[%emt 0:07:16]} 12. dxe4 {[%emt 0:00:07]} h6 {[%emt 0:09:16]} 13. a4 {[%emt 0:04:04]} Be6 {[%emt 0:03:44]} 14. Qe2 {[%emt 0:05:34]} b4 {[%emt 0:07:39]} 15. Bb3 {[%emt 0:07:30]} Qe7 {[%emt 0:07:48]} 16. Bc4 {[%emt 0:01:11]} Bxc4 {[%emt 0:11:38]} 17. Qxc4 {[%emt 0:00:43]} Na5 {[%emt 0:04:04]} 18. Qxb4 {[%emt 0:00:41]} Qxb4 {[%emt 0:00:09]} 19. cxb4 {[%emt 0:00:03]} Nc6 {[%emt 0:00:14]} 20. Nc4 {[%emt 0:00:53]} Nxb4 {[%emt 0:00:24]} 21. Re2 {[%emt 0:00:13]} Nd7 {[%emt 0:03:39]} 22. Be3 {[%emt 0:03:50]} Rfe8 {[%emt 0:05:40]} 23. Rd1 {[%emt 0:01:44]} Nf8 {[%emt 0:00:15]} 24. Na5 {[%emt 0:01:52]} Ne6 {[%emt 0:03:16]} 25. Rc1 {[%emt 0:02:23]} Nd4 {[%emt 0:12:30]} 26. Rd2 {[%emt 0:01:02]} c6 {[%emt 0:04:54]} 27. Rc4 {[%emt 0:01:30]} Rab8 {[%emt 0:01:41]} 28. Nxd4 {[%emt 0:02:30]} exd4 {[%emt 0:00:21]} 29. Bf4 {[%emt 0:00:04]} Be5 {[%emt 0:01:25]} 30. Bxe5 {[%emt 0:00:35]} Rxe5 {[%emt 0:00:10]} 31. Rxb4 {[%emt 0:00:20]} 1-0

[Event "Faroes Open 2018"]
[Site "Sandavagur"]
[Date "2018.07.07"]
[Round "1"]
[White "Nielsen"]
[Black "Djurhuus, Arant"]
[Result "1-0"]
[ECO "C42"]
[WhiteElo "2397"]
[BlackElo "1703"]
[Annotator "ChessBase"]
[PlyCount "61"]
[EventDate "2018.07.07"]
[EventType "swiss"]
[EventCountry "FAI"]
[SourceTitle "playchess.com"]
[Source "ChessBase"]
[SourceQuality "1"]
[TimeControl "40/5400+30:900+30"]

1. e4 {[%emt 0:00:00]} e5 {[%emt 0:00:00]} 2. Nf3 {[%emt 0:00:00]} Nf6 {[%emt 0:00:00]} 3. Nxe5 {[%emt 0:01:19]} d6 {[%emt 0:06:15]} 4. Nf3 {[%emt 0:00:09]} Nxe4 {[%emt 0:00:22]} 5. Nc3 {[%emt 0:00:17]} Nxc3 {[%emt 0:04:31]} 6. dxc3 {[%emt 0:00:11]} d5 {[%emt 0:01:33]} 7. Be3 {[%emt 0:03:28]} Bg4 {[%emt 0:06:00]} 8. Qd2 {[%emt 0:01:00]} Be7 {[%emt 0:02:00]} 9. h3 {[%emt 0:07:27]} Bf5 {[%emt 0:07:20]} 10. O-O-O {[%emt 0:11:51]} c6 {[%emt 0:01:28]} 11. Nd4 {[%emt 0:01:59]} Bg6 {[%emt 0:02:53]} 12. h4 {[%emt 0:08:46]} h5 {[%emt 0:13:36]} 13. g3 {[%emt 0:03:47]} Nd7 {[%emt 0:01:17]} 14. Be2 {[%emt 0:05:02]} Nf6 {[%emt 0:05:10]} 15. f3 {[%emt 0:01:52]} Qd7 {[%emt 0:10:55]} 16. Bf4 {[%emt 0:07:32]} O-O-O {[%emt 0:05:26]} 17. Bf1 {[%emt 0:01:00]} Ne8 {[%emt 0:06:51]} 18. Bh3 {[%emt 0:01:30]} f5 {[%emt 0:00:14]} 19. Rhe1 {[%emt 0:00:53]} Nc7 {[%emt 0:03:56]} 20. Bxc7 {[%emt 0:07:02]} Qxc7 {[%emt 0:02:23]} 21. Ne6 {[%emt 0:00:48]} Qxg3 {[%emt 0:00:24]} 22. Nxd8 {[%emt 0:00:51]} Qxh4 {[%emt 0:02:11]} 23. Ne6 {[%emt 0:01:04]} Bd6 {[%emt 0:08:13]} 24. Qg5 {[%emt 0:03:01]} Qxh3 {[%emt 0:03:21]} 25. Qxg6 {[%emt 0:00:12]} Qxf3 {[%emt 0:01:10]} 26. Qxg7 {[%emt 0:01:57]} Re8 {[%emt 0:00:27]} 27. Nc5 {[%emt 0:01:21]} Re7 {[%emt 0:01:54]} 28. Qf8+ {[%emt 0:00:38]} Kc7 {[%emt 0:01:15]} 29. Rxe7+ {[%emt 0:00:11]} Kb6 {[%emt 0:00:19]} 30. Rxb7+ {[%emt 0:00:48]} Kxc5 {[%emt 0:00:29]} 31. b4+ {[%emt 0:00:12]} 1-0

[Event "Faroes Open 2018"]
[Site "Sandavagur"]
[Date "2018.07.07"]
[Round "1"]
[White "Kristiansen, Jens"]
[Black "Gregersen, Einar"]
[Result "0-1"]
[ECO "A48"]
[WhiteElo "2380"]
[BlackElo "1665"]
[Annotator "ChessBase"]
[PlyCount "70"]
[EventDate "2018.07.07"]
[EventType "swiss"]
[EventCountry "FAI"]
[SourceTitle "playchess.com"]
[Source "ChessBase"]
[SourceQuality "1"]
[TimeControl "40/5400+30:900+30"]

1. d4 {[%emt 0:00:00]} Nf6 {[%emt 0:00:00]} 2. Nf3 {[%emt 0:00:00]} g6 {[%emt 0:00:00]} 3. Bg5 {[%emt 0:00:03]} Bg7 {[%emt 0:00:30]} 4. Nbd2 {[%emt 0:00:15]} O-O {[%emt 0:01:44]} 5. e4 {[%emt 0:00:29]} d6 {[%emt 0:01:27]} 6. c3 {[%emt 0:00:28]} c5 {[%emt 0:04:14]} 7. dxc5 {[%emt 0:00:50]} dxc5 {[%emt 0:00:13]} 8. Bc4 {[%emt 0:00:23]} Nc6 {[%emt 0:02:52]} 9. O-O {[%emt 0:00:33]} h6 {[%emt 0:04:55]} 10. Be3 {[%emt 0:03:51]} b6 {[%emt 0:01:48]} 11. h3 {[%emt 0:00:53]} Qc7 {[%emt 0:02:52]} 12. Re1 {[%emt 0:03:43]} Bb7 {[%emt 0:06:43]} 13. Qc2 {[%emt 0:04:59]} g5 {[%emt 0:06:03]} 14. g3 {[%emt 0:11:45]} Ne5 {[%emt 0:06:50]} 15. Be2 {[%emt 0:02:17]} Rad8 {[%emt 0:12:07]} 16. Rad1 {[%emt 0:11:47]} Rd7 {[%emt 0:05:40]} 17. Nh2 {[%emt 0:23:35]} Rfd8 {[%emt 0:03:52]} 18. Ng4 {[%emt 0:02:18]} Nd3 {[%emt 0:05:00]} 19. Nxf6+ {[%emt 0:01:13]} Bxf6 {[%emt 0:00:13]} 20. Rf1 {[%emt 0:00:26]} Qe5 {[%emt 0:06:42]} 21. f4 {[%emt 0:03:31]} Qc7 {[%emt 0:06:14]} 22. Bg4 {[%emt 0:01:55]} e6 {[%emt 0:01:29]} 23. Rf3 {[%emt 0:03:09]} gxf4 {[%emt 0:02:41]} 24. gxf4 {[%emt 0:00:14]} Bh4 {[%emt 0:00:32]} 25. Qb1 {[%emt 0:09:40]} f5 {[%emt 0:01:47]} 26. exf5 {[%emt 0:00:30]} exf5 {[%emt 0:01:11]} 27. Bxf5 {[%emt 0:02:07]} Rg7+ {[%emt 0:00:50]} 28. Kh2 {[%emt 0:05:13]} Bxf3 {[%emt 0:02:04]} 29. Nxf3 {[%emt 0:00:14]} Nxf4 {[%emt 0:02:37]} 30. Rxd8+ {[%emt 0:00:29]} Bxd8 {[%emt 0:00:13]} 31. Kh1 {[%emt 0:02:46]} Ne2 {[%emt 0:01:01]} 32. Be6+ {[%emt 0:00:35]} Kh8 {[%emt 0:00:47]} 33. Bxh6 {[%emt 0:01:00]} Rg1+ {[%emt 0:03:40]} 34. Nxg1 {[%emt 0:03:51]} Qc6+ {[%emt 0:00:12]} 35. Kh2 {[%emt 0:00:08]} Bc7+ {[%emt 0:00:09]} 0-1

[Event "Faroes Open 2018"]
[Site "Sandavagur"]
[Date "2018.07.07"]
[Round "1"]
[White "Nielsen, Rogvi Egilstoft"]
[Black "Petersen, Gutti"]
[Result "1-0"]
[ECO "B22"]
[WhiteElo "2337"]
[BlackElo "1596"]
[Annotator "NA"]
[PlyCount "65"]
[EventDate "2018.07.07"]
[EventType "swiss"]
[EventCountry "FAI"]
[SourceTitle "playchess.com"]
[Source "ChessBase"]
[SourceQuality "1"]
[TimeControl "40/5400+30:900+30"]

1. e4 {[%emt 0:00:00]} c5 {[%emt 0:00:04]} 2. c3 {[%emt 0:00:00]} Nf6 {[%emt 0:00:09]} 3. e5 {[%emt 0:00:00]} Nd5 {[%emt 0:01:06]} 4. d4 {[%emt 0:00:45]} cxd4 {[%emt 0:01:22]} 5. cxd4 {[%emt 0:00:07]} e6 {[%emt 0:01:16]} 6. Nf3 {[%emt 0:04:18]} a6 {[%emt 0:02:12]} 7. Bd3 {[%emt 0:00:17]} Be7 {[%emt 0:00:31]} 8. O-O {[%emt 0:00:17]} d6 {[%emt 0:00:56]} 9. Nc3 {[%emt 0:01:06]} dxe5 {[%emt 0:01:14]} 10. Nxd5 {[%emt 0:02:11]} Qxd5 {[%emt 0:01:11]} 11. dxe5 {[%emt 0:00:17]} Nc6 {[%emt 0:01:20]} 12. Qe2 {[%emt 0:00:18]} Qd8 {[%emt 0:02:08]} 13. Rd1 {[%emt 0:06:15]} Qc7 {[%emt 0:01:07]} 14. Bf4 {[%emt 0:00:08]} Bd7 {[%emt 0:02:15]} 15. Rac1 {[%emt 0:00:46]} Rd8 {[%emt 0:03:30]} 16. h4 {[%emt 0:00:58]} Bc8 {[%emt 0:00:34]} 17. h5 {[%emt 0:00:53]} Qa5 {[%emt 0:00:50]} 18. a3 {[%emt 0:01:07]} Qa4 {[%emt 0:04:23]} 19. Rc4 {[%emt 0:11:17]} Qa5 {[%emt 0:01:20]} 20. Bc1 {[%emt 0:06:11]} Qc7 {[%emt 0:04:54]} 21. Rg4 {[%emt 0:05:19]} Kf8 {[%emt 0:03:03]} 22. Re1 {[%emt 0:02:49]} b5 {[%emt 0:00:32]} 23. Ng5 {[%emt 0:13:01]} Bxg5 {[%emt 0:03:08]} 24. Bxg5 {[%emt 0:04:43]} Rd5 {[%emt 0:05:42]} 25. h6 {[%emt 0:02:09]} g6 {[%emt 0:00:55]} 26. Bf6 {[%emt 0:03:42]} Rg8 {[%emt 0:00:14]} 27. Rc1 {[%emt 0:00:44]} Bb7 {[%emt 0:00:55]} 28. Be4 {[%emt 0:01:02]} Qd7 {[%emt 0:02:15]} 29. Bxd5 {[%emt 0:00:34]} Qxd5 {[%emt 0:00:56]} 30. Qd1 {[%emt 0:00:58]} Ne7 {[%emt 0:03:52]} 31. Qxd5 {[%emt 0:00:52]} Nxd5 {[%emt 0:00:32]} 32. Rd4 {[%emt 0:00:08]} Ke8 {[%emt 0:00:56]} 33. Rc7 {[%emt 0:00:25]} 1-0

[Event "Faroes Open 2018"]
[Site "Sandavagur"]
[Date "2018.07.07"]
[Round "1"]
[White "Nilssen, John Arni"]
[Black "Fjallheim, Leif Reinert"]
[Result "1-0"]
[ECO "A50"]
[WhiteElo "2301"]
[BlackElo "1886"]
[Annotator "ChessBase"]
[PlyCount "65"]
[EventDate "2018.07.07"]
[EventType "swiss"]
[EventCountry "FAI"]
[SourceTitle "playchess.com"]
[Source "ChessBase"]
[SourceQuality "1"]
[TimeControl "40/5400+30:900+30"]

1. d4 {[%emt 0:00:00]} Nf6 {[%emt 0:00:00]} 2. c4 {[%emt 0:00:00]} g6 {[%emt 0:00:08]} 3. f3 {[%emt 0:00:03]} Bg7 {[%emt 0:00:34]} 4. e4 {[%emt 0:00:06]} d6 {[%emt 0:00:21]} 5. Ne2 {[%emt 0:00:20]} O-O {[%emt 0:00:43]} 6. Bg5 {[%emt 0:00:33]} h6 {[%emt 0:01:16]} 7. Be3 {[%emt 0:00:07]} e5 {[%emt 0:05:33]} 8. d5 {[%emt 0:00:26]} a5 {[%emt 0:00:40]} 9. Qd2 {[%emt 0:01:52]} Kh7 {[%emt 0:00:26]} 10. Ng3 {[%emt 0:01:12]} Nbd7 {[%emt 0:03:09]} 11. Bd3 {[%emt 0:00:49]} Nc5 {[%emt 0:01:59]} 12. Bc2 {[%emt 0:00:32]} Nfd7 {[%emt 0:01:16]} 13. O-O {[%emt 0:04:02]} Re8 {[%emt 0:12:55]} 14. Nc3 {[%emt 0:04:34]} Bf8 {[%emt 0:01:11]} 15. b3 {[%emt 0:00:59]} Nb6 {[%emt 0:04:43]} 16. f4 {[%emt 0:06:38]} Nbd7 {[%emt 0:04:12]} 17. f5 {[%emt 0:01:45]} g5 {[%emt 0:02:51]} 18. Qe2 {[%emt 0:02:54]} Be7 {[%emt 0:05:52]} 19. Rab1 {[%emt 0:08:27]} f6 {[%emt 0:01:33]} 20. h4 {[%emt 0:05:50]} Rf8 {[%emt 0:02:21]} 21. Kf2 {[%emt 0:05:12]} Rh8 {[%emt 0:06:39]} 22. Rh1 {[%emt 0:01:58]} Kg7 {[%emt 0:04:45]} 23. Rh2 {[%emt 0:03:49]} Qg8 {[%emt 0:08:33]} 24. Rbh1 {[%emt 0:04:08]} Qf7 {[%emt 0:12:07]} 25. Ke1 {[%emt 0:01:56]} b6 {[%emt 0:01:18]} 26. Nb5 {[%emt 0:01:56]} Bd8 {[%emt 0:01:30]} 27. Bb1 {[%emt 0:11:22]} Ba6 {[%emt 0:00:30]} 28. hxg5 {[%emt 0:00:44]} fxg5 {[%emt 0:05:15]} 29. f6+ {[%emt 0:00:49]} Bxf6 {[%emt 0:02:22]} 30. Nxc7 {[%emt 0:02:29]} Rac8 {[%emt 0:01:36]} 31. Nf5+ {[%emt 0:00:51]} Kf8 {[%emt 0:00:55]} 32. Nxa6 {[%emt 0:00:58]} Nxa6 {[%emt 0:00:41]} 33. Nxd6 1-0

[Event "Faroes Open 2018"]
[Site "Sandavagur"]
[Date "2018.07.07"]
[Round "1"]
[White "Simonsen, Hans Kristian"]
[Black "Jacobsen, Markus"]
[Result "1-0"]
[ECO "D01"]
[WhiteElo "2150"]
[BlackElo "1106"]
[Annotator "NA"]
[PlyCount "39"]
[EventDate "2018.07.07"]
[EventType "swiss"]
[EventCountry "FAI"]
[SourceTitle "playchess.com"]
[Source "ChessBase"]
[SourceQuality "1"]
[TimeControl "40/5400+30:900+30"]

1. d4 {[%emt 0:00:00]} d5 {[%emt 0:00:00]} 2. Nc3 {[%emt 0:00:00]} Nf6 {[%emt 0:00:30]} 3. Bg5 {[%emt 0:00:04]} Bf5 {[%emt 0:01:35]} 4. e3 {[%emt 0:01:38]} Nc6 {[%emt 0:00:48]} 5. Bd3 {[%emt 0:01:56]} Bxd3 {[%emt 0:01:35]} 6. cxd3 {[%emt 0:03:52]} e5 {[%emt 0:01:20]} 7. dxe5 {[%emt 0:02:30]} Nxe5 {[%emt 0:00:32]} 8. Nf3 {[%emt 0:01:44]} Ng6 {[%emt 0:02:16]} 9. Bxf6 {[%emt 0:00:23]} gxf6 {[%emt 0:00:48]} 10. Qb3 {[%emt 0:00:14]} Ne7 {[%emt 0:02:07]} 11. Qxb7 {[%emt 0:03:28]} a5 {[%emt 0:01:34]} 12. Qb5+ {[%emt 0:02:37]} Qd7 {[%emt 0:01:40]} 13. O-O {[%emt 0:04:29]} c6 {[%emt 0:00:56]} 14. Qa4 {[%emt 0:00:14]} Rg8 {[%emt 0:01:52]} 15. g3 {[%emt 0:01:19]} Qh3 {[%emt 0:02:15]} 16. Nxd5 {[%emt 0:00:44]} Qe6 {[%emt 0:03:22]} 17. Nc7+ {[%emt 0:00:57]} Kd7 {[%emt 0:00:45]} 18. Nxe6 {[%emt 0:00:08]} fxe6 {[%emt 0:00:17]} 19. Rac1 {[%emt 0:00:12]} Ra6 {[%emt 0:00:43]} 20. Nd4 {[%emt 0:06:15]} 1-0

[Event "Faroes Open 2018"]
[Site "Sandavagur"]
[Date "2018.07.07"]
[Round "1"]
[White "Spiesberger, Gerhard"]
[Black "Ziska, Helgi Dam"]
[Result "0-1"]
[ECO "B25"]
[WhiteElo "2043"]
[BlackElo "2552"]
[Annotator "ChessBase"]
[PlyCount "94"]
[EventDate "2018.07.07"]
[EventType "swiss"]
[EventCountry "FAI"]
[SourceTitle "playchess.com"]
[Source "ChessBase"]
[SourceQuality "1"]
[TimeControl "40/5400+30:900+30"]

1. e4 {[%emt 0:00:00]} c5 {[%emt 0:00:00]} 2. Nc3 {[%emt 0:00:00]} Nc6 {[%emt 0:00:23]} 3. g3 {[%emt 0:00:15]} g6 {[%emt 0:00:16]} 4. Bg2 {[%emt 0:00:19]} Bg7 {[%emt 0:00:09]} 5. d3 {[%emt 0:00:28]} d6 {[%emt 0:00:43]} 6. Nge2 {[%emt 0:03:27]} e6 {[%emt 0:02:10]} 7. O-O {[%emt 0:01:11]} Nge7 {[%emt 0:00:48]} 8. Be3 {[%emt 0:02:02]} Nd4 {[%emt 0:09:07]} 9. Qd2 {[%emt 0:03:10]} Nec6 {[%emt 0:18:08]} 10. Nd1 {[%emt 0:05:43]} h5 {[%emt 0:09:31]} 11. c3 {[%emt 0:09:36]} Nxe2+ {[%emt 0:00:13]} 12. Qxe2 {[%emt 0:00:10]} h4 {[%emt 0:02:00]} 13. f4 {[%emt 0:02:18]} hxg3 {[%emt 0:01:40]} 14. hxg3 {[%emt 0:02:04]} e5 {[%emt 0:05:25]} 15. f5 {[%emt 0:01:56]} gxf5 {[%emt 0:02:56]} 16. exf5 {[%emt 0:06:21]} Bf6 {[%emt 0:02:14]} 17. Nf2 {[%emt 0:01:33]} Rg8 {[%emt 0:02:34]} 18. Ne4 {[%emt 0:14:16]} d5 {[%emt 0:00:41]} 19. Nxf6+ {[%emt 0:07:33]} Qxf6 {[%emt 0:00:11]} 20. g4 {[%emt 0:11:44]} Qh4 {[%emt 0:11:40]} 21. Bf2 {[%emt 0:02:14]} Qxg4 {[%emt 0:02:11]} 22. Qxg4 {[%emt 0:00:08]} Rxg4 {[%emt 0:00:05]} 23. Bxc5 {[%emt 0:00:53]} b6 {[%emt 0:01:27]} 24. Be3 {[%emt 0:03:55]} Ba6 {[%emt 0:01:31]} 25. Kf2 {[%emt 0:01:45]} Rxg2+ {[%emt 0:01:44]} 26. Kxg2 {[%emt 0:00:44]} Bxd3 {[%emt 0:00:06]} 27. Rf2 {[%emt 0:02:16]} O-O-O {[%emt 0:03:06]} 28. f6 {[%emt 0:06:08]} Rg8+ {[%emt 0:01:37]} 29. Kh2 {[%emt 0:01:08]} Na5 {[%emt 0:02:46]} 30. Rg1 {[%emt 0:02:00]} Rh8+ {[%emt 0:00:07]} 31. Kg3 {[%emt 0:00:44]} Nc4 {[%emt 0:00:20]} 32. Bc1 {[%emt 0:00:17]} Nd6 {[%emt 0:00:23]} 33. Re1 {[%emt 0:02:33]} Ne4+ {[%emt 0:01:42]} 34. Rxe4 {[%emt 0:00:09]} Bxe4 {[%emt 0:00:04]} 35. c4 {[%emt 0:02:11]} Kd7 {[%emt 0:04:45]} 36. cxd5 {[%emt 0:02:32]} Bxd5 {[%emt 0:00:25]} 37. a3 {[%emt 0:00:43]} Rh1 {[%emt 0:04:40]} 38. Bd2 {[%emt 0:00:53]} Ke6 {[%emt 0:00:34]} 39. Bc3 {[%emt 0:00:17]} Rh6 {[%emt 0:00:53]} 40. Re2 {[%emt 0:01:29]} Rh5 {[%emt 0:00:20]} 41. Kg4 {[%emt 0:06:53]} Rf5 {[%emt 0:00:14]} 42. Re1 {[%emt 0:00:15]} Bf3+ {[%emt 0:01:37]} 43. Kg3 {[%emt 0:00:25]} Bh5 {[%emt 0:00:14]} 44. Re3 {[%emt 0:01:51]} Kxf6 {[%emt 0:00:42]} 45. Rxe5 {[%emt 0:01:25]} Rf3+ {[%emt 0:00:07]} 46. Kh4 {[%emt 0:00:07]} Rxc3 {[%emt 0:00:07]} 47. Rxh5 {[%emt 0:00:17]} Rb3 {[%emt 0:00:19]} 0-1

[Event "Faroes Open 2018"]
[Site "Sandavagur"]
[Date "2018.07.07"]
[Round "1"]
[White "Fjallheim, Leif Reinert"]
[Black "Greenfeld, Alon"]
[Result "0-1"]
[ECO "B23"]
[WhiteElo "1886"]
[BlackElo "2496"]
[Annotator "RC"]
[PlyCount "56"]
[EventDate "2018.07.07"]
[EventType "swiss"]
[EventCountry "FAI"]
[SourceTitle "playchess.com"]
[Source "ChessBase"]
[SourceQuality "1"]
[TimeControl "40/5400+30:900+30"]

1. e4 {[%emt 0:00:00]} c5 {[%emt 0:02:14]} 2. Nc3 {[%emt 0:01:01]} a6 {[%emt 0:02:50]} 3. a4 {[%emt 0:04:27]} e6 {[%emt 0:04:11]} 4. f4 {[%emt 0:02:26]} d5 {[%emt 0:00:21]} 5. d3 {[%emt 0:04:03]} Nc6 {[%emt 0:03:18]} 6. Nf3 {[%emt 0:04:18]} Nf6 {[%emt 0:02:42]} 7. Be2 {[%emt 0:04:14]} b6 {[%emt 0:13:20]} 8. O-O {[%emt 0:03:48]} Bb7 {[%emt 0:00:05]} 9. h3 {[%emt 0:09:17]} Be7 {[%emt 0:15:02]} 10. Qe1 {[%emt 0:07:24]} O-O {[%emt 0:00:41]} 11. Bd1 {[%emt 0:08:52]} Qc7 {[%emt 0:03:20]} 12. g4 {[%emt 0:17:27]} Rad8 {[%emt 0:12:24]} 13. g5 {[%emt 0:12:45]} Ne8 {[%emt 0:02:06]} 14. e5 {[%emt 0:06:06]} Kh8 {[%emt 0:04:30]} 15. Qh4 {[%emt 0:04:49]} f6 {[%emt 0:09:41]} 16. exf6 {[%emt 0:02:40]} gxf6 {[%emt 0:00:18]} 17. g6 {[%emt 0:02:20]} Bd6 {[%emt 0:00:07]} 18. Kf2 {[%emt 0:01:24]} Rg8 {[%emt 0:10:56]} 19. Rg1 {[%emt 0:00:33]} f5 {[%emt 0:01:52]} 20. Bd2 {[%emt 0:01:32]} Qe7 {[%emt 0:01:24]} 21. Rg5 {[%emt 0:00:31]} Rxg6 {[%emt 0:04:24]} 22. Rxg6 {[%emt 0:00:13]} Qxh4+ {[%emt 0:00:05]} 23. Nxh4 {[%emt 0:00:07]} hxg6 {[%emt 0:00:07]} 24. Nxg6+ {[%emt 0:00:21]} Kg7 {[%emt 0:00:14]} 25. Nh4 {[%emt 0:00:21]} Nf6 {[%emt 0:02:17]} 26. Bf3 {[%emt 0:00:15]} Rh8 {[%emt 0:01:19]} 27. Kg3 {[%emt 0:01:21]} Nd4 {[%emt 0:01:33]} 28. Rc1 {[%emt 0:00:49]} Rxh4 {[%emt 0:00:26]} 0-1

[Event "Faroes Open 2018"]
[Site "Sandavagur"]
[Date "2018.07.07"]
[Round "1"]
[White "Nielsen, Jon I Horni"]
[Black "Nakar, Eylon"]
[Result "0-1"]
[ECO "B90"]
[WhiteElo "1735"]
[BlackElo "2462"]
[Annotator "ChessBase"]
[PlyCount "86"]
[EventDate "2018.07.07"]
[EventType "swiss"]
[EventCountry "FAI"]
[SourceTitle "playchess.com"]
[Source "ChessBase"]
[SourceQuality "1"]
[TimeControl "40/5400+30:900+30"]

1. e4 {[%emt 0:00:00]} c5 {[%emt 0:00:00]} 2. Nf3 {[%emt 0:00:00]} d6 {[%emt 0:00:00]} 3. d4 {[%emt 0:01:28]} cxd4 {[%emt 0:00:00]} 4. Nxd4 {[%emt 0:00:07]} Nf6 {[%emt 0:00:04]} 5. Nc3 {[%emt 0:00:09]} a6 {[%emt 0:00:04]} 6. Be3 {[%emt 0:03:02]} e5 {[%emt 0:00:31]} 7. Nb3 {[%emt 0:01:57]} Be6 {[%emt 0:00:12]} 8. f3 {[%emt 0:01:59]} Nbd7 {[%emt 0:04:07]} 9. Qd2 {[%emt 0:03:53]} h5 {[%emt 0:00:52]} 10. h4 {[%emt 0:06:57]} Rc8 {[%emt 0:01:30]} 11. O-O-O {[%emt 0:04:50]} b5 {[%emt 0:02:20]} 12. Kb1 {[%emt 0:01:26]} Be7 {[%emt 0:06:57]} 13. Nd5 {[%emt 0:04:36]} Bxd5 {[%emt 0:01:17]} 14. exd5 {[%emt 0:00:59]} Nb6 {[%emt 0:01:17]} 15. Bxb6 {[%emt 0:01:06]} Qxb6 {[%emt 0:03:06]} 16. Bd3 {[%emt 0:02:41]} g6 {[%emt 0:06:52]} 17. Be4 {[%emt 0:04:43]} Kf8 {[%emt 0:08:22]} 18. Na5 {[%emt 0:03:19]} Kg7 {[%emt 0:06:30]} 19. Nc6 {[%emt 0:00:33]} Rxc6 {[%emt 0:14:53]} 20. dxc6 {[%emt 0:00:33]} d5 {[%emt 0:00:02]} 21. Bd3 {[%emt 0:01:18]} Bc5 {[%emt 0:02:35]} 22. Qg5 {[%emt 0:01:49]} Re8 {[%emt 0:02:35]} 23. Rde1 {[%emt 0:02:39]} e4 {[%emt 0:18:40]} 24. fxe4 {[%emt 0:02:27]} dxe4 {[%emt 0:00:01]} 25. Rhf1 {[%emt 0:04:05]} Qxc6 {[%emt 0:00:02]} 26. Be2 {[%emt 0:04:11]} Be7 {[%emt 0:10:10]} 27. Rd1 {[%emt 0:02:42]} Rc8 {[%emt 0:02:47]} 28. c3 {[%emt 0:01:28]} Qe6 {[%emt 0:00:03]} 29. Qe3 {[%emt 0:02:21]} Rc5 {[%emt 0:02:31]} 30. g3 {[%emt 0:05:54]} Re5 {[%emt 0:00:17]} 31. Qd4 {[%emt 0:04:14]} e3 {[%emt 0:03:37]} 32. Qa7 {[%emt 0:02:49]} Ne4 {[%emt 0:00:57]} 33. Qxe3 {[%emt 0:00:57]} Nf6 {[%emt 0:00:43]} 34. Qd4 {[%emt 0:01:44]} Rxe2 {[%emt 0:00:10]} 35. Qd3 {[%emt 0:02:45]} Re3 {[%emt 0:00:16]} 36. Qd4 {[%emt 0:00:39]} Re4 {[%emt 0:00:30]} 37. Qf2 {[%emt 0:00:16]} Ng4 {[%emt 0:00:39]} 38. Qf3 {[%emt 0:00:35]} Nh2 {[%emt 0:00:35]} 39. Qd3 {[%emt 0:00:25]} Nxf1 {[%emt 0:00:08]} 40. Rxf1 {[%emt 0:00:06]} Re3 {[%emt 0:00:39]} 41. Qd4+ {[%emt 0:15:21]} Bf6 {[%emt 0:15:21]} 42. Qf4 {[%emt 0:00:08]} Qe4+ {[%emt 0:01:38]} 43. Qxe4 {[%emt 0:00:19]} Rxe4 {[%emt 0:00:02]} 0-1

[Event "Faroes Open 2018"]
[Site "Sandavagur"]
[Date "2018.07.07"]
[Round "1"]
[White "Joensen, Hans Petur"]
[Black "Haubro, Martin"]
[Result "0-1"]
[ECO "A20"]
[WhiteElo "1627"]
[BlackElo "2373"]
[Annotator "ChessBase"]
[PlyCount "84"]
[EventDate "2018.07.07"]
[EventType "swiss"]
[EventCountry "FAI"]
[SourceTitle "playchess.com"]
[Source "ChessBase"]
[SourceQuality "1"]
[TimeControl "40/5400+30:900+30"]

1. c4 {[%emt 0:00:00]} e5 {[%emt 0:00:00]} 2. b3 {[%emt 0:00:00]} Nc6 {[%emt 0:01:27]} 3. Bb2 {[%emt 0:01:31]} Nf6 {[%emt 0:01:11]} 4. g3 {[%emt 0:00:55]} d5 {[%emt 0:00:57]} 5. cxd5 {[%emt 0:01:31]} Qxd5 {[%emt 0:03:59]} 6. Nf3 {[%emt 0:02:23]} e4 {[%emt 0:00:07]} 7. Nc3 {[%emt 0:02:46]} Qe6 {[%emt 0:03:22]} 8. Nb5 {[%emt 0:06:25]} Qd7 {[%emt 0:12:33]} 9. Ng5 {[%emt 0:09:27]} a6 {[%emt 0:02:40]} 10. Nc3 {[%emt 0:04:42]} Qf5 {[%emt 0:00:08]} 11. h4 {[%emt 0:07:38]} Bc5 {[%emt 0:04:18]} 12. e3 {[%emt 0:03:38]} h6 {[%emt 0:03:06]} 13. Nh3 {[%emt 0:05:23]} Ne5 {[%emt 0:03:02]} 14. Be2 {[%emt 0:03:31]} Bd7 {[%emt 0:02:11]} 15. Nf4 {[%emt 0:04:16]} Bc6 {[%emt 0:00:52]} 16. Qc2 {[%emt 0:05:06]} O-O-O {[%emt 0:02:15]} 17. O-O-O {[%emt 0:00:25]} Nd3+ {[%emt 0:01:06]} 18. Kb1 {[%emt 0:04:46]} Nxf2 {[%emt 0:01:01]} 19. Rhf1 {[%emt 0:00:18]} Nxd1 {[%emt 0:00:13]} 20. Nxd1 {[%emt 0:01:55]} Bb4 {[%emt 0:05:19]} 21. Nc3 {[%emt 0:03:34]} Qc5 {[%emt 0:02:05]} 22. g4 {[%emt 0:03:36]} g5 {[%emt 0:05:33]} 23. d4 {[%emt 0:08:27]} Qd6 {[%emt 0:01:50]} 24. hxg5 {[%emt 0:06:00]} hxg5 {[%emt 0:00:06]} 25. Nh5 {[%emt 0:00:41]} Nxh5 {[%emt 0:01:39]} 26. gxh5 {[%emt 0:01:35]} Bxc3 {[%emt 0:00:45]} 27. Bxc3 {[%emt 0:00:55]} Bd5 {[%emt 0:00:16]} 28. Bg4+ {[%emt 0:01:22]} Kb8 {[%emt 0:00:21]} 29. Qg2 {[%emt 0:01:59]} Rh6 {[%emt 0:01:58]} 30. Be1 {[%emt 0:00:28]} Rf8 {[%emt 0:02:11]} 31. Bg3 {[%emt 0:01:19]} Qb6 {[%emt 0:00:09]} 32. Be5 {[%emt 0:01:32]} a5 {[%emt 0:07:33]} 33. Bg7 {[%emt 0:02:03]} Rg8 {[%emt 0:07:39]} 34. Bxh6 {[%emt 0:00:55]} a4 {[%emt 0:00:15]} 35. Rf5 {[%emt 0:03:31]} Bc4 {[%emt 0:02:26]} 36. Rxg5 {[%emt 0:00:56]} Bd3+ {[%emt 0:01:40]} 37. Kb2 {[%emt 0:00:21]} Rxg5 {[%emt 0:00:10]} 38. Bxg5 {[%emt 0:00:13]} Qb4 {[%emt 0:03:26]} 39. Bh4 {[%emt 0:00:38]} a3+ {[%emt 0:00:13]} 40. Kc1 {[%emt 0:01:15]} Qc3+ {[%emt 0:00:04]} 41. Kd1 {[%emt 0:15:59]} Qa1+ {[%emt 0:15:06]} 42. Kd2 {[%emt 0:00:46]} Qxa2+ {[%emt 0:00:04]} 0-1